[Event "Hungarian Rapid-ch 2022"]
[Site "Ajka"]
[Date "2022.07.16"]
[Round "9.17"]
[White "Papp, Levente"]
[Black "Papp, Bence"]
[Result "1/2-1/2"]
[ECO "A05"]
[WhiteElo "2394"]
[BlackElo "2244"]
[Annotator "ChessBase"]
[PlyCount "174"]
[EventDate "2022.07.15"]
[EventType "swiss"]
[EventCountry "HUN"]
[SourceTitle "playchess.com"]
[Source "ChessBase"]
[SourceQuality "1"]
[TimeControl "900+10"]

1. Nf3 {[%emt 0:00:13]} Nf6 {[%emt 0:00:13]} 2. g3 {[%emt 0:00:02]} b5 {[%emt 0:00:02]} 3. Bg2 {[%emt 0:00:03]} Bb7 {[%emt 0:00:01]} 4. O-O {[%emt 0:00:04]} e6 {[%emt 0:00:01]} 5. d3 {[%emt 0:00:31]} d5 {[%emt 0:01:13]} 6. e4 {[%emt 0:00:47]} dxe4 {[%emt 0:00:08]} 7. Nfd2 {[%emt 0:00:01]} Nbd7 {[%emt 0:00:08]} 8. Nc3 {[%emt 0:00:11]} Rb8 {[%emt 0:00:48]} 9. Ndxe4 {[%emt 0:00:37]} b4 {[%emt 0:00:18]} 10. Nxf6+ {[%emt 0:00:13]} Nxf6 {[%emt 0:00:02]} 11. Bxb7 {[%emt 0:00:05]} Rxb7 {[%emt 0:00:01]} 12. Qf3 {[%emt 0:00:02]} Rb8 {[%emt 0:01:22]} 13. Ne4 {[%emt 0:00:13]} Be7 {[%emt 0:00:01]} 14. Be3 {[%emt 0:00:14]} a5 {[%emt 0:00:14]} 15. Ba7 {[%emt 0:03:29]} Rc8 {[%emt 0:00:01]} 16. a3 {[%emt 0:01:22]} c5 {[%emt 0:04:02]} 17. axb4 {[%emt 0:00:26]} cxb4 {[%emt 0:00:01]} 18. c4 {[%emt 0:00:01]} bxc3 {[%emt 0:01:06]} 19. bxc3 {[%emt 0:00:14]} Nxe4 {[%emt 0:00:14]} 20. Qxe4 {[%emt 0:00:01]} Bf6 {[%emt 0:02:49]} 21. Bd4 {[%emt 0:02:58]} O-O {[%emt 0:01:22]} 22. Bxf6 {[%emt 0:00:14]} Qxf6 {[%emt 0:00:01]} 23. c4 {[%emt 0:00:07]} Rc5 {[%emt 0:00:01]} 24. Qe3 {[%emt 0:01:32]} Rf5 {[%emt 0:01:18]} 25. Ra3 {[%emt 0:00:52]} Qb2 {[%emt 0:00:55]} 26. Rfa1 {[%emt 0:00:28]} Re5 {[%emt 0:01:07]} 27. Qc1 {[%emt 0:00:50]} Qb4 {[%emt 0:00:01]} 28. Qc3 {[%emt 0:00:15]} Re2 {[%emt 0:01:27]} 29. Qxb4 {[%emt 0:01:08]} axb4 {[%emt 0:00:01]} 30. Rb3 {[%emt 0:00:01]} Rd2 {[%emt 0:00:01]} 31. Kf1 {[%emt 0:00:36]} Rd8 {[%emt 0:00:01]} 32. Ke1 {[%emt 0:00:01]} Rc2 {[%emt 0:00:01]} 33. Rxb4 {[%emt 0:00:08]} h5 {[%emt 0:00:25]} 34. Rd1 {[%emt 0:00:38]} Rd4 {[%emt 0:01:11]} 35. Rd2 {[%emt 0:00:08]} Rc1+ {[%emt 0:00:01]} 36. Ke2 {[%emt 0:00:01]} h4 {[%emt 0:00:01]} 37. Rb5 {[%emt 0:00:17]} Rh1 {[%emt 0:00:22]} 38. Ke3 {[%emt 0:00:25]} Rd8 {[%emt 0:00:01]} 39. f4 {[%emt 0:00:22]} hxg3 {[%emt 0:00:18]} 40. hxg3 {[%emt 0:00:01]} Rg1 {[%emt 0:00:01]} 41. Kf2 {[%emt 0:00:13]} Rc1 {[%emt 0:00:02]} 42. c5 {[%emt 0:00:48]} Rd5 {[%emt 0:00:09]} 43. d4 {[%emt 0:00:01]} g5 {[%emt 0:00:00]} 44. Rbb2 {[%emt 0:00:46]} Kg7 {[%emt 0:00:25]} 45. Ke3 {[%emt 0:00:09]} Re1+ {[%emt 0:00:26]} 46. Re2 {[%emt 0:00:04]} Rd1 {[%emt 0:00:01]} 47. Rbd2 {[%emt 0:00:04]} Rc1 {[%emt 0:00:01]} 48. Rc2 {[%emt 0:00:01]} Rd1 {[%emt 0:00:02]} 49. c6 {[%emt 0:00:20]} Rd8 {[%emt 0:00:07]} 50. c7 {[%emt 0:00:13]} Rc8 {[%emt 0:00:01]} 51. fxg5 {[%emt 0:00:04]} Ra1 {[%emt 0:00:02]} 52. Rc5 {[%emt 0:00:18]} Ra7 {[%emt 0:00:29]} 53. Rec2 {[%emt 0:00:02]} Kf8 {[%emt 0:00:12]} 54. Ke4 {[%emt 0:00:28]} Ke7 {[%emt 0:00:02]} 55. d5 {[%emt 0:00:18]} exd5+ {[%emt 0:00:29]} 56. Kxd5 {[%emt 0:00:01]} Kd7 {[%emt 0:00:11]} 57. Ke5 {[%emt 0:00:14]} Ra6 {[%emt 0:00:04]} 58. Kf5 {[%emt 0:00:15]} Rd6 {[%emt 0:00:16]} 59. Re2 {[%emt 0:00:08]} Ra6 {[%emt 0:00:14]} 60. Rd2+ {[%emt 0:00:17]} Ke7 {[%emt 0:00:01]} 61. Re5+ {[%emt 0:00:00]} Re6 {[%emt 0:00:04]} 62. Rxe6+ {[%emt 0:00:02]} fxe6+ {[%emt 0:00:02]} 63. Kg6 {[%emt 0:00:01]} Rxc7 {[%emt 0:00:05]} 64. Ra2 {[%emt 0:00:41]} e5 {[%emt 0:00:25]} 65. Rh2 {[%emt 0:00:19]} Ke6 {[%emt 0:00:15]} 66. Rh8 {[%emt 0:00:03]} e4 {[%emt 0:00:10]} 67. Ra8 {[%emt 0:00:20]} Rc3 {[%emt 0:00:19]} 68. Re8+ {[%emt 0:00:11]} Kd5 {[%emt 0:00:01]} 69. g4 {[%emt 0:00:02]} Rg3 {[%emt 0:00:01]} 70. Kh5 {[%emt 0:00:11]} Rh3+ {[%emt 0:00:02]} 71. Kg6 {[%emt 0:00:01]} Rg3 {[%emt 0:00:01]} 72. Kf5 {[%emt 0:00:19]} Rf3+ {[%emt 0:00:01]} 73. Kg6 {[%emt 0:00:01]} Rg3 {[%emt 0:00:01]} 74. Kf7 {[%emt 0:00:11]} Rxg4 {[%emt 0:00:03]} 75. g6 {[%emt 0:00:01]} Kd4 {[%emt 0:00:06]} 76. Kf6 {[%emt 0:00:12]} e3 {[%emt 0:00:08]} 77. g7 {[%emt 0:00:17]} Kd3 {[%emt 0:00:19]} 78. Rd8+ {[%emt 0:00:18]} Kc2 {[%emt 0:00:08]} 79. Re8 {[%emt 0:00:10]} Kd2 {[%emt 0:00:05]} 80. Rd8+ {[%emt 0:00:15]} Kc2 {[%emt 0:00:01]} 81. Re8 {[%emt 0:00:11]} Kd2 {[%emt 0:00:02]} 82. Rd8+ {[%emt 0:00:15]} Kc2 {[%emt 0:00:01]} 83. Rc8+ {[%emt 0:00:08]} Kd2 {[%emt 0:00:02]} 84. Rc4 {[%emt 0:00:05]} Rxg7 {[%emt 0:00:25]} 85. Kxg7 {[%emt 0:00:01]} e2 {[%emt 0:00:01]} 86. Re4 {[%emt 0:00:01]} e1=Q {[%emt 0:00:03]} 87. Rxe1 {[%emt 0:00:01]} Kxe1 {[%emt 0:00:01]} 1/2-1/2

[Event "Hungarian Rapid-ch 2022"]
[Site "Ajka"]
[Date "2022.07.16"]
[Round "9.18"]
[White "Juhasz, Zoltan"]
[Black "Emodi, Barnabas"]
[Result "1-0"]
[ECO "B23"]
[WhiteElo "1985"]
[BlackElo "2341"]
[Annotator "ChessBase"]
[PlyCount "69"]
[EventDate "2022.07.15"]
[EventType "swiss"]
[EventCountry "HUN"]
[SourceTitle "playchess.com"]
[Source "ChessBase"]
[SourceQuality "1"]
[TimeControl "900+10"]

1. e4 {[%emt 0:00:20]} c5 {[%emt 0:00:13]} 2. Nc3 {[%emt 0:00:00]} e6 {[%emt 0:00:09]} 3. Nge2 {[%emt 0:00:00]} Nc6 {[%emt 0:00:08]} 4. g3 {[%emt 0:00:05]} d5 {[%emt 0:00:08]} 5. exd5 {[%emt 0:00:04]} exd5 {[%emt 0:00:08]} 6. d4 {[%emt 0:00:03]} Bg4 {[%emt 0:00:43]} 7. Be3 {[%emt 0:03:03]} Bf3 {[%emt 0:01:04]} 8. Rg1 {[%emt 0:00:05]} c4 {[%emt 0:01:14]} 9. Bg2 {[%emt 0:00:39]} Bxg2 {[%emt 0:00:25]} 10. Rxg2 {[%emt 0:00:02]} Bb4 {[%emt 0:00:37]} 11. a3 {[%emt 0:00:40]} Ba5 {[%emt 0:00:53]} 12. b4 {[%emt 0:02:25]} Bc7 {[%emt 0:00:19]} 13. Nf4 {[%emt 0:02:16]} Nge7 {[%emt 0:00:50]} 14. Qf3 {[%emt 0:01:02]} Bxf4 {[%emt 0:00:35]} 15. gxf4 {[%emt 0:01:41]} g6 {[%emt 0:00:48]} 16. b5 {[%emt 0:01:27]} Nb8 {[%emt 0:03:44]} 17. Kf1 {[%emt 0:00:45]} Qd7 {[%emt 0:01:12]} 18. Rg5 {[%emt 0:00:29]} f6 {[%emt 0:00:47]} 19. Nxd5 {[%emt 0:01:31]} Kf7 {[%emt 0:01:40]} 20. Nxe7 {[%emt 0:00:17]} fxg5 {[%emt 0:00:09]} 21. fxg5+ {[%emt 0:00:17]} Kxe7 {[%emt 0:00:11]} 22. Qf6+ {[%emt 0:00:01]} Ke8 {[%emt 0:00:04]} 23. Qxh8+ {[%emt 0:00:01]} Ke7 {[%emt 0:00:00]} 24. Qxh7+ {[%emt 0:00:17]} Kf8 {[%emt 0:00:33]} 25. Qh8+ {[%emt 0:00:21]} Kf7 {[%emt 0:00:17]} 26. Qf6+ {[%emt 0:00:15]} Ke8 {[%emt 0:00:02]} 27. Qxg6+ {[%emt 0:00:01]} Kd8 {[%emt 0:00:01]} 28. Qg8+ {[%emt 0:00:04]} Kc7 {[%emt 0:00:02]} 29. Qxc4+ {[%emt 0:00:01]} Kd8 {[%emt 0:00:17]} 30. g6 {[%emt 0:00:58]} Qh3+ {[%emt 0:00:14]} 31. Ke1 {[%emt 0:00:03]} Qg4 {[%emt 0:00:04]} 32. Qd5+ {[%emt 0:00:11]} Kc7 {[%emt 0:00:33]} 33. Qe5+ {[%emt 0:00:19]} Kb6 {[%emt 0:00:35]} 34. Qc5+ {[%emt 0:00:20]} Ka5 {[%emt 0:00:03]} 35. Bd2+ {[%emt 0:00:02]} 1-0

[Event "Hungarian Rapid-ch 2022"]
[Site "Ajka"]
[Date "2022.07.16"]
[Round "9.19"]
[White "Lazarne Vajda, Szidonia"]
[Black "Gombocz, Ferenc Jr."]
[Result "1-0"]
[ECO "C55"]
[WhiteElo "2313"]
[BlackElo "2229"]
[Annotator "ChessBase"]
[PlyCount "95"]
[EventDate "2022.07.15"]
[EventType "swiss"]
[EventCountry "HUN"]
[SourceTitle "playchess.com"]
[Source "ChessBase"]
[SourceQuality "1"]
[TimeControl "900+10"]

1. e4 {[%emt 0:00:13]} e5 {[%emt 0:00:12]} 2. Nf3 {[%emt 0:00:03]} Nc6 {[%emt 0:00:02]} 3. Bc4 {[%emt 0:00:13]} Nf6 {[%emt 0:00:04]} 4. d3 {[%emt 0:00:16]} Be7 {[%emt 0:00:02]} 5. O-O {[%emt 0:00:04]} O-O {[%emt 0:00:03]} 6. h3 {[%emt 0:00:07]} d6 {[%emt 0:00:11]} 7. c3 {[%emt 0:00:11]} h6 {[%emt 0:00:25]} 8. Bb3 {[%emt 0:00:14]} Na5 {[%emt 0:00:20]} 9. Bc2 {[%emt 0:00:02]} c5 {[%emt 0:00:01]} 10. d4 {[%emt 0:00:13]} cxd4 {[%emt 0:00:20]} 11. cxd4 {[%emt 0:00:02]} Nc6 {[%emt 0:00:02]} 12. Nc3 {[%emt 0:00:20]} Nh7 {[%emt 0:00:33]} 13. Nd5 {[%emt 0:00:32]} Bg5 {[%emt 0:00:20]} 14. dxe5 {[%emt 0:00:37]} dxe5 {[%emt 0:00:21]} 15. Ba4 {[%emt 0:00:23]} Be6 {[%emt 0:00:52]} 16. Bxc6 {[%emt 0:00:47]} bxc6 {[%emt 0:00:10]} 17. Nc3 {[%emt 0:02:02]} Bxc1 {[%emt 0:02:13]} 18. Rxc1 {[%emt 0:00:05]} f6 {[%emt 0:00:15]} 19. Qxd8 {[%emt 0:02:18]} Rfxd8 {[%emt 0:00:03]} 20. b3 {[%emt 0:00:07]} c5 {[%emt 0:00:45]} 21. Na4 {[%emt 0:00:07]} c4 {[%emt 0:00:05]} 22. bxc4 {[%emt 0:00:02]} Rac8 {[%emt 0:00:02]} 23. Nb2 {[%emt 0:00:43]} Nf8 {[%emt 0:00:19]} 24. Rc2 {[%emt 0:00:22]} Nd7 {[%emt 0:00:12]} 25. Nd2 {[%emt 0:00:24]} Nc5 {[%emt 0:00:18]} 26. f3 {[%emt 0:00:04]} Rb8 {[%emt 0:00:04]} 27. Nd1 {[%emt 0:00:26]} Rd3 {[%emt 0:01:18]} 28. Nc3 {[%emt 0:00:08]} a5 {[%emt 0:00:39]} 29. Nd5 {[%emt 0:00:45]} a4 {[%emt 0:00:08]} 30. Kf2 {[%emt 0:00:41]} a3 {[%emt 0:00:22]} 31. Ke2 {[%emt 0:00:26]} Rd4 {[%emt 0:00:30]} 32. Ne7+ {[%emt 0:00:37]} Kf7 33. Nc6 Rb6 {[%emt 0:00:43]} 34. Na7 {[%emt 0:01:21]} Bd7 {[%emt 0:01:02]} 35. Nb1 {[%emt 0:01:49]} Ba4 {[%emt 0:03:31]} 36. Rd2 {[%emt 0:00:07]} Rb2 {[%emt 0:02:03]} 37. Rxb2 {[%emt 0:01:12]} axb2 {[%emt 0:00:02]} 38. Na3 {[%emt 0:00:01]} Nd3 {[%emt 0:01:07]} 39. Rb1 {[%emt 0:01:51]} Nc1+ {[%emt 0:00:15]} 40. Kf2 {[%emt 0:00:03]} Rd2+ {[%emt 0:00:09]} 41. Kg3 {[%emt 0:00:11]} Ne2+ {[%emt 0:00:10]} 42. Kh2 {[%emt 0:00:27]} Nc3 {[%emt 0:00:06]} 43. Re1 {[%emt 0:00:12]} Bd1 {[%emt 0:00:28]} 44. Re3 {[%emt 0:00:35]} b1=Q {[%emt 0:00:17]} 45. Nxb1 {[%emt 0:00:02]} Nxb1 {[%emt 0:00:03]} 46. c5 {[%emt 0:00:18]} Rxa2 {[%emt 0:00:33]} 47. Nb5 {[%emt 0:00:11]} Nd2 {[%emt 0:00:38]} 48. Kg1 {[%emt 0:00:21]} 1-0

[Event "Hungarian Rapid-ch 2022"]
[Site "Ajka"]
[Date "2022.07.16"]
[Round "9.20"]
[White "Kolimar, Kristof Pal"]
[Black "Lakos, Nikoletta"]
[Result "1/2-1/2"]
[ECO "A04"]
[WhiteElo "2160"]
[BlackElo "2203"]
[Annotator "ChessBase"]
[PlyCount "80"]
[EventDate "2022.07.15"]
[EventType "swiss"]
[EventCountry "HUN"]
[SourceTitle "playchess.com"]
[Source "ChessBase"]
[SourceQuality "1"]
[TimeControl "900+10"]

1. Nf3 {[%emt 0:00:12]} d6 {[%emt 0:00:21]} 2. d4 {[%emt 0:00:02]} Nf6 {[%emt 0:00:10]} 3. c4 {[%emt 0:00:03]} Bg4 {[%emt 0:00:01]} 4. g3 {[%emt 0:00:31]} Bxf3 {[%emt 0:00:17]} 5. exf3 {[%emt 0:00:01]} c6 {[%emt 0:00:21]} 6. Nc3 {[%emt 0:00:06]} e6 {[%emt 0:00:30]} 7. d5 {[%emt 0:00:04]} exd5 {[%emt 0:01:07]} 8. cxd5 {[%emt 0:00:02]} c5 {[%emt 0:00:01]} 9. Be3 {[%emt 0:01:55]} Be7 {[%emt 0:00:41]} 10. f4 {[%emt 0:01:02]} O-O {[%emt 0:00:10]} 11. Bh3 {[%emt 0:00:09]} Qa5 {[%emt 0:00:27]} 12. Qb3 {[%emt 0:01:39]} Nbd7 {[%emt 0:01:44]} 13. O-O {[%emt 0:01:31]} a6 {[%emt 0:00:58]} 14. Bxd7 {[%emt 0:02:22]} Nxd7 {[%emt 0:00:05]} 15. Qxb7 {[%emt 0:00:02]} Rfd8 {[%emt 0:00:20]} 16. Qb3 {[%emt 0:00:35]} Rab8 {[%emt 0:00:13]} 17. Qc2 {[%emt 0:00:01]} Bf6 {[%emt 0:00:30]} 18. Ne4 {[%emt 0:01:57]} Rb6 {[%emt 0:05:03]} 19. Bd2 {[%emt 0:02:17]} Qb5 {[%emt 0:00:15]} 20. a4 {[%emt 0:01:19]} Qxb2 {[%emt 0:00:17]} 21. Qxb2 {[%emt 0:00:01]} Rxb2 {[%emt 0:00:19]} 22. Ba5 {[%emt 0:00:01]} Re8 {[%emt 0:01:09]} 23. Nxd6 {[%emt 0:00:34]} Ree2 {[%emt 0:00:03]} 24. Rae1 {[%emt 0:00:15]} Bd4 {[%emt 0:00:18]} 25. Rxe2 {[%emt 0:00:20]} Rxe2 {[%emt 0:00:01]} 26. Nf5 {[%emt 0:01:04]} Ra2 {[%emt 0:00:42]} 27. Nxd4 {[%emt 0:00:12]} cxd4 {[%emt 0:00:01]} 28. Re1 {[%emt 0:00:03]} g6 {[%emt 0:00:22]} 29. Re7 {[%emt 0:00:48]} Rxa4 {[%emt 0:01:07]} 30. Bd2 {[%emt 0:00:39]} Ra2 {[%emt 0:01:33]} 31. Bb4 {[%emt 0:00:03]} Rb2 {[%emt 0:00:15]} 32. Ba5 {[%emt 0:00:08]} Rb5 {[%emt 0:00:19]} 33. Rxd7 Rxa5 34. Kf1 {[%emt 0:00:14]} Kf8 {[%emt 0:00:11]} 35. d6 {[%emt 0:00:20]} d3 {[%emt 0:00:18]} 36. Ke1 {[%emt 0:00:01]} Rd5 {[%emt 0:00:24]} 37. Kd2 {[%emt 0:00:03]} Ke8 {[%emt 0:00:12]} 38. Re7+ {[%emt 0:00:01]} Kf8 {[%emt 0:00:05]} 39. Rd7 {[%emt 0:00:04]} Ke8 {[%emt 0:00:25]} 40. Re7+ {[%emt 0:00:01]} Kf8 {[%emt 0:00:17]} 1/2-1/2

[Event "Hungarian Rapid-ch 2022"]
[Site "Ajka"]
[Date "2022.07.16"]
[Round "9.21"]
[White "Molnar, Aurel Jr."]
[Black "Bodi, Tibor"]
[Result "0-1"]
[ECO "B03"]
[WhiteElo "2014"]
[BlackElo "2301"]
[Annotator "ChessBase"]
[PlyCount "76"]
[EventDate "2022.07.15"]
[EventType "swiss"]
[EventCountry "HUN"]
[SourceTitle "playchess.com"]
[Source "ChessBase"]
[SourceQuality "1"]
[TimeControl "900+10"]

1. e4 {[%emt 0:00:13]} Nf6 {[%emt 0:00:32]} 2. e5 {[%emt 0:00:03]} Nd5 3. c4 Nb6 {[%emt 0:00:02]} 4. d4 {[%emt 0:00:01]} d6 {[%emt 0:00:03]} 5. exd6 {[%emt 0:00:02]} cxd6 {[%emt 0:00:01]} 6. Be3 {[%emt 0:00:01]} g6 {[%emt 0:00:01]} 7. Nc3 {[%emt 0:00:10]} Bg7 {[%emt 0:00:01]} 8. Rc1 {[%emt 0:00:09]} O-O {[%emt 0:00:03]} 9. b3 {[%emt 0:00:11]} Bf5 {[%emt 0:00:03]} 10. Be2 {[%emt 0:00:32]} Nc6 {[%emt 0:01:17]} 11. Nf3 {[%emt 0:00:13]} d5 {[%emt 0:00:10]} 12. c5 {[%emt 0:01:20]} Nc8 {[%emt 0:00:02]} 13. O-O {[%emt 0:00:05]} Bg4 {[%emt 0:00:02]} 14. Qd2 {[%emt 0:01:27]} e6 {[%emt 0:00:05]} 15. a3 {[%emt 0:00:34]} N8e7 {[%emt 0:00:27]} 16. Ne1 {[%emt 0:02:46]} Bxe2 {[%emt 0:00:11]} 17. Nxe2 {[%emt 0:00:02]} Nf5 {[%emt 0:00:05]} 18. b4 {[%emt 0:00:22]} a6 {[%emt 0:00:06]} 19. a4 {[%emt 0:00:43]} Re8 {[%emt 0:00:15]} 20. Nf3 {[%emt 0:01:01]} Nxe3 {[%emt 0:00:27]} 21. fxe3 {[%emt 0:00:05]} h6 {[%emt 0:01:03]} 22. Nf4 {[%emt 0:01:06]} Qd7 {[%emt 0:00:19]} 23. Nd3 {[%emt 0:00:17]} Rf8 {[%emt 0:00:07]} 24. b5 {[%emt 0:01:10]} axb5 {[%emt 0:00:04]} 25. axb5 {[%emt 0:00:01]} Na5 {[%emt 0:00:04]} 26. c6 {[%emt 0:00:09]} Qe7 {[%emt 0:00:29]} 27. Nfe5 {[%emt 0:00:56]} Nb3 {[%emt 0:00:10]} 28. Qb2 {[%emt 0:01:47]} Nxc1 {[%emt 0:00:04]} 29. Rxc1 {[%emt 0:00:01]} bxc6 {[%emt 0:00:14]} 30. Nxc6 {[%emt 0:00:33]} Qg5 {[%emt 0:00:03]} 31. Qe2 {[%emt 0:00:24]} Ra3 {[%emt 0:00:56]} 32. Rb1 {[%emt 0:00:31]} Kh7 {[%emt 0:01:51]} 33. b6 {[%emt 0:00:16]} Qf5 {[%emt 0:00:11]} 34. b7 {[%emt 0:01:16]} Rxd3 {[%emt 0:00:23]} 35. Rf1 {[%emt 0:00:21]} Qe4 {[%emt 0:00:11]} 36. Rxf7 {[%emt 0:00:51]} Rxe3 {[%emt 0:00:24]} 37. Qf1 {[%emt 0:01:23]} Rxf7 {[%emt 0:00:11]} 38. Qxf7 {[%emt 0:00:02]} Re1+ {[%emt 0:00:02]} 0-1

[Event "Hungarian Rapid-ch 2022"]
[Site "Ajka"]
[Date "2022.07.16"]
[Round "9.22"]
[White "Kiss, Pal"]
[Black "Boguszlavszkij, Jevgenyij"]
[Result "1/2-1/2"]
[ECO "E10"]
[WhiteElo "2243"]
[BlackElo "1914"]
[Annotator "ChessBase"]
[PlyCount "87"]
[EventDate "2022.07.15"]
[EventType "swiss"]
[EventCountry "HUN"]
[SourceTitle "playchess.com"]
[Source "ChessBase"]
[SourceQuality "1"]
[TimeControl "900+10"]

1. d4 {[%emt 0:00:12]} Nf6 {[%emt 0:00:16]} 2. c4 {[%emt 0:00:04]} e6 {[%emt 0:00:02]} 3. Nf3 {[%emt 0:00:04]} d5 {[%emt 0:00:06]} 4. g3 {[%emt 0:00:04]} c6 {[%emt 0:00:07]} 5. Qc2 {[%emt 0:00:06]} Ne4 {[%emt 0:00:24]} 6. Bg2 {[%emt 0:00:06]} Bd6 {[%emt 0:00:09]} 7. O-O {[%emt 0:00:04]} O-O {[%emt 0:00:02]} 8. b3 {[%emt 0:00:53]} Qe7 {[%emt 0:00:15]} 9. Bb2 {[%emt 0:00:09]} Nd7 {[%emt 0:00:41]} 10. Nbd2 {[%emt 0:00:32]} Ndf6 {[%emt 0:00:06]} 11. Ne5 {[%emt 0:00:49]} Nxd2 {[%emt 0:00:25]} 12. Qxd2 {[%emt 0:00:02]} Nd7 {[%emt 0:01:48]} 13. e4 {[%emt 0:02:09]} dxe4 {[%emt 0:01:11]} 14. Bxe4 {[%emt 0:00:03]} Nxe5 {[%emt 0:01:15]} 15. dxe5 {[%emt 0:00:03]} Bc7 {[%emt 0:00:19]} 16. Qc2 {[%emt 0:01:06]} h6 {[%emt 0:00:09]} 17. Rad1 {[%emt 0:01:05]} Bd7 {[%emt 0:00:21]} 18. Qc1 {[%emt 0:01:10]} Rfd8 {[%emt 0:00:44]} 19. Ba3 {[%emt 0:00:56]} Qe8 {[%emt 0:00:48]} 20. Bd6 {[%emt 0:00:16]} Rac8 {[%emt 0:00:46]} 21. Rd3 {[%emt 0:00:53]} Bxd6 {[%emt 0:01:56]} 22. Rxd6 {[%emt 0:00:09]} Qe7 {[%emt 0:00:05]} 23. Rfd1 {[%emt 0:00:48]} Be8 {[%emt 0:00:22]} 24. Qa3 {[%emt 0:02:23]} a6 {[%emt 0:02:01]} 25. Qa5 {[%emt 0:00:33]} Rd7 {[%emt 0:00:12]} 26. Rxd7 {[%emt 0:00:29]} Bxd7 {[%emt 0:00:02]} 27. Qd2 {[%emt 0:00:23]} Be8 {[%emt 0:00:33]} 28. Qd6 {[%emt 0:00:15]} Rc7 {[%emt 0:00:44]} 29. Qxe7 {[%emt 0:01:02]} Rxe7 {[%emt 0:00:02]} 30. c5 {[%emt 0:00:03]} Rd7 {[%emt 0:00:16]} 31. Rxd7 {[%emt 0:00:56]} Bxd7 {[%emt 0:00:01]} 32. f4 {[%emt 0:00:03]} Kf8 {[%emt 0:00:06]} 33. Kf2 {[%emt 0:00:01]} Ke7 {[%emt 0:00:01]} 34. Ke3 {[%emt 0:00:01]} f6 {[%emt 0:00:45]} 35. exf6+ {[%emt 0:00:35]} gxf6 {[%emt 0:00:38]} 36. Kd4 {[%emt 0:00:08]} Be8 {[%emt 0:00:07]} 37. g4 {[%emt 0:00:23]} Bd7 {[%emt 0:00:29]} 38. Bf3 {[%emt 0:00:29]} Kf7 {[%emt 0:00:15]} 39. h4 {[%emt 0:00:15]} Kg6 {[%emt 0:00:09]} 40. Be4+ {[%emt 0:00:08]} Kf7 {[%emt 0:00:09]} 41. g5 {[%emt 0:00:26]} hxg5 {[%emt 0:00:27]} 42. fxg5 {[%emt 0:00:14]} e5+ {[%emt 0:00:12]} 43. Ke3 {[%emt 0:00:09]} f5 {[%emt 0:00:02]} 44. Bd3 1/2-1/2

[Event "Hungarian Rapid-ch 2022"]
[Site "Ajka"]
[Date "2022.07.16"]
[Round "9.23"]
[White "Horvath, Kristof"]
[Black "Kovacs, Klara"]
[Result "1/2-1/2"]
[ECO "C03"]
[WhiteElo "2053"]
[BlackElo "2098"]
[Annotator "ChessBase"]
[PlyCount "120"]
[EventDate "2022.07.15"]
[EventType "swiss"]
[EventCountry "HUN"]
[SourceTitle "playchess.com"]
[Source "ChessBase"]
[SourceQuality "1"]
[TimeControl "900+10"]

1. e4 e6 {[%emt 0:00:12]} 2. d4 {[%emt 0:00:14]} d5 {[%emt 0:00:01]} 3. Nd2 {[%emt 0:00:03]} Be7 {[%emt 0:00:02]} 4. Ngf3 {[%emt 0:00:14]} Nf6 {[%emt 0:00:02]} 5. e5 {[%emt 0:00:18]} Nfd7 {[%emt 0:00:02]} 6. Bd3 {[%emt 0:00:10]} c5 {[%emt 0:00:05]} 7. c3 {[%emt 0:00:02]} b6 {[%emt 0:00:02]} 8. Qe2 {[%emt 0:00:28]} Nc6 {[%emt 0:00:09]} 9. O-O {[%emt 0:00:06]} cxd4 {[%emt 0:00:02]} 10. cxd4 {[%emt 0:00:02]} Nb4 {[%emt 0:00:01]} 11. Bb5 {[%emt 0:03:50]} a6 {[%emt 0:00:47]} 12. Ba4 {[%emt 0:00:02]} b5 {[%emt 0:00:01]} 13. Bb3 {[%emt 0:00:42]} Qb6 {[%emt 0:00:03]} 14. a3 {[%emt 0:00:25]} Nc6 {[%emt 0:00:01]} 15. Qe3 {[%emt 0:00:01]} a5 {[%emt 0:00:28]} 16. Rd1 {[%emt 0:00:47]} a4 {[%emt 0:00:09]} 17. Bc2 {[%emt 0:00:02]} b4 {[%emt 0:00:01]} 18. axb4 {[%emt 0:00:13]} Qxb4 {[%emt 0:00:43]} 19. b3 {[%emt 0:00:39]} Nb6 {[%emt 0:00:58]} 20. Ba3 {[%emt 0:00:21]} Qa5 {[%emt 0:01:00]} 21. Bxe7 {[%emt 0:00:24]} Nxe7 {[%emt 0:00:01]} 22. bxa4 {[%emt 0:00:05]} Bd7 {[%emt 0:00:33]} 23. Nb3 {[%emt 0:00:31]} Qa7 {[%emt 0:00:02]} 24. Nc5 {[%emt 0:00:08]} Nc4 {[%emt 0:00:06]} 25. Qg5 {[%emt 0:00:26]} Ng6 {[%emt 0:01:47]} 26. a5 {[%emt 0:02:06]} Bc6 {[%emt 0:00:40]} 27. a6 {[%emt 0:01:22]} Qe7 {[%emt 0:00:41]} 28. Rdb1 {[%emt 0:01:31]} Qxg5 {[%emt 0:00:19]} 29. Nxg5 {[%emt 0:00:01]} Nf4 {[%emt 0:00:05]} 30. Nf3 {[%emt 0:00:30]} Ke7 {[%emt 0:00:27]} 31. Kf1 {[%emt 0:00:48]} f6 {[%emt 0:00:17]} 32. exf6+ {[%emt 0:00:39]} gxf6 {[%emt 0:00:02]} 33. g3 {[%emt 0:00:51]} Ng6 {[%emt 0:00:04]} 34. Bd3 {[%emt 0:00:43]} e5 {[%emt 0:00:37]} 35. dxe5 {[%emt 0:01:37]} fxe5 {[%emt 0:00:10]} 36. Bxc4 {[%emt 0:00:19]} dxc4 {[%emt 0:00:02]} 37. Nd2 {[%emt 0:00:14]} Bd5 {[%emt 0:00:10]} 38. a7 {[%emt 0:00:14]} Rhc8 {[%emt 0:00:32]} 39. Na4 {[%emt 0:00:19]} c3 {[%emt 0:01:03]} 40. Nb6 {[%emt 0:00:06]} cxd2 {[%emt 0:00:17]} 41. Nxd5+ {[%emt 0:00:01]} Ke6 {[%emt 0:00:09]} 42. Nb6 {[%emt 0:00:05]} Rc1+ {[%emt 0:00:23]} 43. Rxc1 {[%emt 0:00:05]} dxc1=Q+ {[%emt 0:00:04]} 44. Rxc1 {[%emt 0:00:02]} Rxa7 {[%emt 0:00:02]} 45. Rc6+ {[%emt 0:00:04]} Kf5 {[%emt 0:00:15]} 46. Kg2 {[%emt 0:00:26]} Ra2 {[%emt 0:00:05]} 47. Nc4 {[%emt 0:00:19]} e4 {[%emt 0:00:46]} 48. Ne3+ {[%emt 0:00:01]} Ke5 {[%emt 0:00:09]} 49. Rc7 {[%emt 0:00:07]} h5 {[%emt 0:01:07]} 50. Rc5+ {[%emt 0:00:03]} Kf6 {[%emt 0:00:01]} 51. Rxh5 {[%emt 0:00:08]} Ne5 {[%emt 0:00:03]} 52. Rh4 {[%emt 0:00:40]} Nd3 {[%emt 0:00:14]} 53. Rxe4 {[%emt 0:00:14]} Rxf2+ {[%emt 0:00:18]} 54. Kh3 {[%emt 0:00:01]} Ra2 {[%emt 0:00:09]} 55. Ng4+ {[%emt 0:00:17]} Kg5 {[%emt 0:00:02]} 56. Rd4 {[%emt 0:00:06]} Ne1 {[%emt 0:00:11]} 57. Rd5+ {[%emt 0:00:04]} Kg6 {[%emt 0:00:01]} 58. Kh4 {[%emt 0:00:13]} Nf3+ {[%emt 0:00:04]} 59. Kh3 {[%emt 0:00:05]} Ng1+ {[%emt 0:00:02]} 60. Kh4 {[%emt 0:00:05]} Nf3+ {[%emt 0:00:02]} 1/2-1/2